bitfinex-derivatives/quotes_SOLF0:USTF0_20241101
["timestamp","ask_amount","ask_price","bid_price","bid_amount"]
[1730461547799,9.14148731,167.8,167.79,2.9823]
[1730461548378,9.14148731,167.8,167.74,9.14148731]
[1730461548586,2.76,167.83,167.74,9.14148731]
[1730461548587,9.14148731,167.78,167.74,9.14148731]
[1730461549495,12.12408731,167.78,167.75,2.983]
[1730461550100,9.14148731,167.77,167.75,2.983]
[1730461550390,9.14148731,167.77,167.74,2.9831]
[1730461550784,9.14148731,167.77,167.72,13.20688731]
[1730461551995,9.14148731,167.78,167.77,2.9828]
[1730461553478,9.14148731,167.79,167.75,9.14148731]
[1730461553683,9.14148731,167.8,167.79,2.9823]
[1730461554600,9.14148731,167.8,167.78,2.9825]
[1730461554992,9.14148731,167.8,167.75,9.14148731]
[1730461555188,9.14148731,167.8,167.79,2.9824]
[1730461557290,9.14148731,167.82,167.76,9.14148731]
[1730461558794,9.14148731,167.82,167.8,2.9821]
[1730461562110,9.14148731,167.83,167.77,9.14148731]
[1730461562298,9.14148731,167.83,167.79,9.14148731]
[1730461563098,9.14148731,167.83,167.82,2.9818]
[1730461564611,9.14148731,167.83,167.81,2.982]
[1730461566812,9.14148731,167.83,167.82,2.9819]
[1730461567314,9.14148731,167.84,167.83,2.9817]
[1730461567707,9.14148731,167.86,167.81,9.14148731]
[1730461567912,9.14148731,167.86,167.85,2.9813]
[1730461568617,9.14148731,167.86,167.84,2.9814]
[1730461568914,9.14148731,167.85,167.84,2.9814]
[1730461571717,9.14148731,167.87,167.82,9.14148731]
[1730461572617,9.14148731,167.87,167.85,2.9813]
[1730461574227,9.14148731,167.86,167.85,2.9813]
[1730461578824,12.12278731,167.86,167.83,2.9816]
[1730461579326,9.14148731,167.84,167.83,2.9816]
[1730461580128,12.12318731,167.84,167.81,2.9819]
[1730461580323,44.92,168.02,167.78,8.35993181]
[1730461580517,9.14148731,167.91,167.85,9.14148731]
[1730461580929,9.14148731,167.9,167.87,2.9809]
[1730461581321,9.14148731,167.9,167.88,2.9807]
[1730461581629,9.14148731,167.9,167.85,9.14148731]
[1730461581929,9.14148731,167.9,167.89,2.9806]
[1730461582131,2.76,167.92,167.89,2.9806]
[1730461582432,9.14148731,167.93,167.89,2.9806]
[1730461582820,2.9801,167.92,167.89,2.9806]
[1730461583433,9.14148731,167.93,167.87,9.14148731]
[1730461583626,9.14148731,167.91,167.88,2.9807]
[1730461584133,12.12188731,167.91,167.88,2.9807]
[1730461585928,12.12188731,167.91,167.85,9.14148731]
[1730461585929,12.12198731,167.9,167.87,2.9809]
[1730461586523,9.14148731,167.9,167.84,9.14148731]
[1730461586830,9.14148731,167.88,167.86,2.9811]
[1730461587423,9.14148731,167.88,167.85,2.9812]
[1730461587424,12.12238731,167.88,167.85,2.9812]
[1730461587625,12.12238731,167.88,167.82,9.14148731]
[1730461587626,9.14148731,167.88,167.82,9.14148731]
[1730461588025,12.12258731,167.87,167.84,2.9813]
[1730461588528,2.9813,167.86,167.83,2.9817]
[1730461588841,9.14148731,167.85,167.83,2.9817]
[1730461589830,9.14148731,167.85,167.79,2.76]
[1730461589831,9.14148731,167.87,167.84,2.9813]
[1730461590133,9.14148731,167.87,167.82,9.14148731]
[1730461590540,12.12248731,167.88,167.85,2.9813]
[1730461591420,13.15228731,167.9,167.85,9.14148731]
[1730461591737,9.14148731,167.91,167.87,9.14148731]
[1730461592431,9.14148731,167.93,167.88,9.14148731]
[1730461593135,12.12148731,167.93,167.9,2.9804]
[1730461593434,9.14148731,167.91,167.86,9.14148731]
[1730461593638,9.14148731,167.9,167.85,9.14148731]
[1730461594139,12.12208731,167.9,167.87,2.9809]
[1730461596637,2.9806,167.9,167.88,2.9808]
[1730461597034,9.14148731,167.91,167.88,2.9808]
[1730461597237,12.12178731,167.91,167.88,2.9808]
[1730461598537,12.12188731,167.91,167.88,2.9808]
[1730461601541,12.12188731,167.91,167.86,9.14148731]
[1730461601542,9.14148731,167.91,167.89,2.9806]
[1730461601735,12.12158731,167.92,167.89,2.9806]
[1730461606838,9.14148731,167.92,167.9,2.9803]
[1730461607436,9.14148731,167.92,167.88,9.14148731]
[1730461607651,12.12128731,167.94,167.91,2.9803]
[1730461608233,9.14148731,167.94,167.91,2.9803]
[1730461608442,12.12128731,167.94,167.91,2.9803]
[1730461608942,9.14148731,167.94,167.89,9.14148731]
[1730461609128,2.98,167.93,167.9,2.9804]
[1730461609949,12.12148731,167.93,167.9,2.9804]
[1730461611443,2.9801,167.92,167.9,2.9804]
[1730461612553,2.9801,167.92,167.87,9.14148731]
[1730461612554,2.9803,167.91,167.87,9.14148731]
[1730461613052,2.9803,167.91,167.88,2.9807]
[1730461615651,2.9803,167.91,167.89,2.9806]
[1730461616146,2.9801,167.92,167.87,9.14148731]
[1730461616342,2.9801,167.92,167.9,2.9803]
[1730461616543,12.12128731,167.94,167.89,9.14148731]
[1730461617341,12.12128731,167.94,167.92,2.98]
[1730461617543,9.14148731,167.94,167.89,9.14148731]
[1730461618141,12.12128731,167.94,167.91,2.9802]
[1730461618538,9.14148731,167.94,167.89,9.14148731]
[1730461619162,2.98,167.93,167.9,2.9803]
[1730461621161,2.9802,167.92,167.89,2.9806]
[1730461621451,9.14148731,167.91,167.86,9.14148731]
[1730461622261,12.12188731,167.91,167.88,2.9807]
[1730461623554,2.9805,167.9,167.87,2.9809]
[1730461624357,12.12178731,167.91,167.88,2.9807]
[1730461624551,2.9803,167.91,167.88,2.9807]
[1730461626458,2.9804,167.91,167.88,2.9807]
[1730461627656,2.9806,167.89,167.86,2.9811]
[1730461628656,2.9806,167.89,167.84,9.14148731]
[1730461628856,2.9806,167.89,167.87,2.9809]
[1730461629665,9.14148731,167.9,167.87,2.9809]
[1730461629865,12.12198731,167.9,167.87,2.9809]
[1730461630074,10.39898731,167.91,167.88,2.9807]
[1730461630260,2.9804,167.91,167.88,2.9807]
[1730461631561,2.9805,167.9,167.86,9.14148731]
[1730461633173,2.9805,167.9,167.87,2.9809]
[1730461633463,9.14148731,167.89,167.83,9.14148731]
[1730461633664,9.14148731,167.88,167.83,9.14148731]
[1730461633865,9.14148731,167.88,167.85,2.9813]
[1730461634458,9.14148731,167.88,167.82,9.14148731]
[1730461634965,2.9813,167.85,167.83,2.9816]
[1730461636470,9.14148731,167.86,167.83,2.9816]
[1730461636471,12.12278731,167.86,167.83,2.9816]
[1730461637265,12.12278731,167.86,167.84,2.9815]
[1730461637469,14.88238731,167.88,167.79,2.76]
[1730461637672,9.14148731,167.89,167.83,9.14148731]
[1730461638277,12.12218731,167.89,167.83,9.14148731]
[1730461638572,9.14148731,167.88,167.85,2.9812]
[1730461639166,9.14148731,167.88,167.83,9.14148731]
[1730461639364,2.981,167.87,167.84,2.9814]
[1730461639577,9.14148731,167.87,167.82,9.14148731]
[1730461640479,2.9812,167.86,167.83,2.9815]
[1730461640670,2.9812,167.86,167.82,9.14148731]
[1730461641470,2.9812,167.86,167.83,2.9817]
[1730461641672,2.981,167.87,167.82,9.14148731]
[1730461641976,2.981,167.87,167.84,2.9814]
[1730461642180,9.14148731,167.85,167.79,9.14148731]
[1730461642480,9.14148731,167.84,167.79,9.14148731]
[1730461642682,9.14148731,167.85,167.82,2.9818]
[1730461643487,12.12298731,167.85,167.82,2.9818]
[1730461644583,12.12288731,167.85,167.82,2.9818]
[1730461646688,12.12288731,167.85,167.83,2.9816]
[1730461646888,12.12288731,167.85,167.79,9.14148731]
[1730461647568,12.12288731,167.85,167.82,2.9818]
[1730461647972,12.12288731,167.85,167.79,9.14148731]
[1730461648173,12.12288731,167.85,167.83,2.9817]
[1730461650586,9.14148731,167.85,167.83,2.9817]
[1730461653384,9.14148731,167.85,167.81,9.14148731]
[1730461653579,9.14148731,167.85,167.83,2.9817]
[1730461654881,9.14148731,167.85,167.81,9.14148731]
[1730461655083,12.12288731,167.85,167.82,2.9818]
[1730461661610,12.12288731,167.85,167.8,9.14148731]
[1730461663302,12.12288731,167.85,167.82,2.9818]
[1730461663499,12.12288731,167.85,167.8,9.14148731]
[1730461663902,12.12288731,167.85,167.82,2.9818]
[1730461664494,12.12288731,167.85,167.8,9.14148731]
[1730461664704,9.14148731,167.85,167.8,9.14148731]
[1730461665198,9.14148731,167.85,167.83,2.9816]
[1730461666509,9.14148731,167.85,167.8,9.14148731]
[1730461667314,9.14148731,167.85,167.82,2.9817]
[1730461669208,12.12288731,167.85,167.82,2.9817]
[1730461669710,12.12288731,167.85,167.81,2.982]
[1730461669711,2.9816,167.84,167.81,2.982]
[1730461671626,2.9815,167.84,167.81,2.982]
[1730461671814,9.14148731,167.83,167.78,9.14148731]
[1730461672323,12.12328731,167.83,167.78,9.14148731]
[1730461673328,12.12328731,167.83,167.81,2.982]
[1730461673521,12.12328731,167.83,167.78,9.14148731]
[1730461673522,2.982,167.82,167.78,9.14148731]
[1730461673825,9.14148731,167.82,167.79,2.9823]
[1730461674520,2.9821,167.81,167.79,2.9823]
[1730461675026,9.14148731,167.81,167.78,2.9825]
[1730461675617,12.12368731,167.81,167.78,2.9825]
[1730461678129,12.12368731,167.81,167.79,2.9824]
[1730461678529,12.12368731,167.81,167.75,11.90148731]
[1730461678829,9.14148731,167.81,167.75,11.90148731]
[1730461679028,2.9822,167.8,167.75,11.90148731]
[1730461679820,2.9822,167.8,167.75,9.14148731]
[1730461680124,2.9822,167.8,167.78,2.9825]
[1730461681630,9.14148731,167.79,167.78,2.9825]
[1730461683432,9.14148731,167.79,167.74,9.14148731]
[1730461683633,12.12408731,167.78,167.75,2.983]
[1730461683836,12.12408731,167.78,167.72,9.14148731]
[1730461686322,12.12408731,167.78,167.75,2.983]
[1730461686524,12.12408731,167.78,167.72,9.14148731]
[1730461687027,12.12408731,167.78,167.75,2.9829]
[1730461687227,12.12408731,167.78,167.72,9.14148731]
[1730461687532,9.14148731,167.8,167.78,2.9825]
[1730461688537,2.76,167.82,167.77,2.9826]
[1730461688726,9.14148731,167.79,167.77,2.9826]
[1730461689226,9.14148731,167.78,167.76,2.9828]
[1730461689428,9.14148731,167.8,167.74,9.14148731]
[1730461690137,9.14148731,167.8,167.78,2.9824]
[1730461696427,9.14148731,167.8,167.74,9.14148731]
[1730461696633,12.12378731,167.8,167.77,2.9826]
[1730461696828,12.12378731,167.8,167.74,9.14148731]
[1730461697350,9.14148731,167.78,167.76,2.9828]
[1730461698533,9.14148731,167.77,167.75,2.9831]
[1730461700344,12.12408731,167.78,167.75,2.9831]
[1730461701439,2.9828,167.77,167.75,2.9831]
[1730461702446,12.12418731,167.78,167.75,2.9831]
[1730461703444,9.14148731,167.78,167.73,9.14148731]
[1730461703649,9.14148731,167.79,167.78,2.9825]
[1730461706951,9.14148731,167.79,167.72,9.14148731]
[1730461707152,9.14148731,167.77,167.72,9.14148731]
[1730461707450,9.14148731,167.77,167.76,2.9829]
[1730461708642,9.14148731,167.78,167.76,2.9829]
[1730461708947,9.14148731,167.78,167.72,9.14148731]
[1730461709161,9.14148731,167.78,167.77,2.9828]
[1730461710248,9.14148731,167.79,167.75,9.14148731]
[1730461710446,9.14148731,167.81,167.76,9.14148731]
[1730461711249,9.14148731,167.81,167.8,2.9822]
[1730461712255,9.14148731,167.82,167.81,2.982]
[1730461712945,9.14148731,167.84,167.79,9.14148731]
[1730461713141,9.14148731,167.84,167.83,2.9817]
[1730461713344,9.14148731,167.85,167.8,9.14148731]
[1730461713550,9.14148731,167.85,167.83,2.9815]
[1730461713842,9.14148731,167.85,167.79,9.14148731]
[1730461714058,12.12278731,167.85,167.82,2.9818]
[1730461714657,9.14148731,167.84,167.81,2.982]
[1730461715949,12.12298731,167.84,167.81,2.982]
[1730461716151,9.14148731,167.83,167.81,2.982]
[1730461716457,12.12318731,167.83,167.78,9.14148731]
[1730461717455,12.12318731,167.83,167.81,2.982]
[1730461717754,2.9817,167.83,167.81,2.982]
[1730461718454,2.9817,167.83,167.78,9.14148731]
[1730461718658,2.9817,167.83,167.81,2.982]
[1730461719743,9.14148731,167.82,167.78,9.14148731]
[1730461720049,9.14148731,167.81,167.75,9.14148731]
[1730461720650,9.14148731,167.79,167.78,2.9824]
[1730461721053,9.14148731,167.79,167.75,9.14148731]
[1730461721260,9.14148731,167.79,167.74,2.76]
[1730461721261,9.14148731,167.79,167.74,11.90148731]
[1730461722362,9.14148731,167.78,167.74,9.14148731]
[1730461722857,9.14148731,167.78,167.76,2.9828]
[1730461726573,12.12408731,167.78,167.75,2.983]
[1730461726762,9.14148731,167.77,167.75,2.983]
[1730461728763,12.12428731,167.77,167.75,2.983]
[1730461729667,12.12428731,167.77,167.71,9.14148731]
[1730461729870,12.12428731,167.77,167.74,2.9833]
[1730461731564,9.14148731,167.77,167.73,9.14148731]
[1730461732268,9.14148731,167.77,167.75,2.983]
[1730461733163,12.12428731,167.77,167.75,2.983]
[1730461733369,9.14148731,167.76,167.74,2.9832]
[1730461733568,9.14148731,167.77,167.74,2.9832]
[1730461733770,12.12428731,167.77,167.74,2.9832]
[1730461734383,12.12428731,167.77,167.72,9.14148731]
[1730461734576,12.12428731,167.77,167.75,2.9831]
[1730461735671,9.14148731,167.77,167.75,2.9831]
[1730461739266,9.14148731,167.78,167.76,2.9828]
[1730461739467,9.14148731,167.78,167.73,9.14148731]
[1730461739666,9.14148731,167.79,167.74,9.14148731]
[1730461741674,9.14148731,167.79,167.78,2.9826]
[1730461741974,2.9826,167.78,167.74,2.76]
[1730461742185,12.12408731,167.78,167.75,2.983]
[1730461742680,2.9828,167.77,167.75,2.983]
[1730461743273,2.9824,167.79,167.77,2.9828]
[1730461743478,9.14148731,167.8,167.74,9.14148731]
[1730461743864,9.14148731,167.8,167.78,2.9824]
[1730461744685,9.14148731,167.8,167.74,9.14148731]
[1730461744869,9.14148731,167.81,167.8,2.9822]
[1730461745370,12.12328731,167.83,167.81,2.982]
[1730461746473,12.12318731,167.83,167.8,2.9821]
[1730461748068,9.14148731,167.83,167.78,9.14148731]
[1730461748272,9.14148731,167.83,167.82,2.9819]
[1730461748476,9.14148731,167.84,167.79,9.14148731]
[1730461748774,9.14148731,167.85,167.8,9.14148731]
[1730461749586,9.14148731,167.84,167.79,11.90148731]
[1730461750185,9.14148731,167.84,167.82,2.9817]
[1730461750377,9.14148731,167.84,167.79,11.90148731]
[1730461750685,9.14148731,167.84,167.82,2.9817]
[1730461750987,9.14148731,167.84,167.79,11.90148731]
[1730461751480,9.14148731,167.86,167.84,2.9815]
[1730461752976,9.14148731,167.85,167.8,1.3301]
[1730461753283,9.14148731,167.83,167.82,2.9818]
[1730461754882,9.14148731,167.83,167.82,2.9819]
[1730461756473,9.14148731,167.83,167.79,2.9823]
[1730461756681,9.14148731,167.83,167.78,11.90148731]
[1730461756985,9.14148731,167.83,167.78,9.14148731]
[1730461757186,9.14148731,167.81,167.79,2.9823]
[1730461758994,9.14148731,167.81,167.77,2.76]
[1730461759189,9.14148731,167.81,167.8,2.9822]
[1730461760993,9.14148731,167.81,167.76,1.2541]
[1730461761295,9.14148731,167.79,167.78,2.9825]
[1730461762697,9.14148731,167.81,167.8,2.9821]
[1730461763994,9.14148731,167.81,167.76,9.14148731]
[1730461764189,9.14148731,167.8,167.75,9.14148731]
[1730461764898,9.14148731,167.8,167.78,2.9825]
[1730461766597,12.12368731,167.8,167.78,2.9825]
[1730461767290,9.14148731,167.8,167.78,2.9825]
[1730461771305,9.14148731,167.81,167.8,2.9822]
[1730461771700,9.14148731,167.81,167.77,9.14148731]
[1730461772599,9.14148731,167.81,167.79,2.9823]
[1730461774197,2.9825,167.79,167.76,2.9828]
[1730461774398,9.14148731,167.78,167.76,2.9828]
[1730461774596,9.14148731,167.79,167.74,9.14148731]
[1730461774805,9.14148731,167.79,167.77,2.9827]
[1730461777215,9.14148731,167.79,167.78,2.9826]
[1730461777401,12.12358731,167.81,167.78,2.9826]
[1730461777597,12.12358731,167.81,167.77,9.14148731]
[1730461777598,9.14148731,167.81,167.77,9.14148731]
[1730461777805,12.12338731,167.82,167.8,2.9822]
[1730461778007,9.14148731,167.82,167.77,9.14148731]
[1730461778905,9.14148731,167.82,167.8,2.9821]
[1730461781415,9.14148731,167.82,167.77,11.90148731]
[1730461781610,9.14148731,167.82,167.81,2.982]
[1730461781807,9.14148731,167.84,167.8,9.14148731]
[1730461782116,1.3828,167.88,167.8,9.14148731]
[1730461782117,9.14148731,167.86,167.8,9.14148731]
[1730461782611,2.9814,167.85,167.82,2.9817]
[1730461784915,12.12268731,167.86,167.83,2.9816]
[1730461785413,9.14148731,167.84,167.83,2.9816]
[1730461790518,9.14148731,167.86,167.82,9.14148731]
[1730461790723,9.14148731,167.86,167.84,2.9814]
[1730461792110,9.14148731,167.87,167.83,9.14148731]
[1730461792518,9.14148731,167.89,167.83,9.14148731]
[1730461793118,12.12218731,167.89,167.87,2.981]
[1730461793509,9.14148731,167.89,167.85,9.14148731]
[1730461793721,9.14148731,167.9,167.88,2.9807]
[1730461794021,9.14148731,167.9,167.85,9.14148731]
[1730461794324,9.14148731,167.9,167.85,11.90148731]
[1730461794626,1.366,167.93,167.85,11.90148731]
[1730461794627,9.14148731,167.92,167.91,2.9803]
[1730461794813,9.14148731,167.93,167.91,2.9803]
[1730461795121,9.14148731,167.93,167.92,2.9801]
[1730461795417,20.20626417,167.94,167.92,2.9801]
[1730461795624,20.20626417,167.94,167.93,2.9799]
[1730461796327,9.14148731,167.95,167.93,2.9799]
[1730461801442,9.14148731,167.95,167.89,11.90148731]
[1730461801732,12.12108731,167.95,167.92,2.9799]
[1730461815141,9.14148731,167.95,167.92,2.9799]
[1730461816546,9.14148731,167.95,167.9,9.14148731]
[1730461817444,9.14148731,167.95,167.92,2.98]
[1730461818545,9.14148731,167.95,167.9,9.14148731]
[1730461818736,9.14148731,167.95,167.93,2.9799]
[1730461836554,12.12118731,167.95,167.92,2.98]
[1730461838052,12.12118731,167.95,167.9,9.14148731]
[1730461838350,12.12118731,167.95,167.93,2.9799]
[1730461840257,9.14148731,167.95,167.93,2.9799]
[1730461841466,9.14148731,167.95,167.9,9.14148731]
[1730461841662,12.12118731,167.95,167.92,2.98]
[1730461841867,9.14148731,167.93,167.86,11.88148731]
[1730461842157,12.12178731,167.91,167.87,2.9809]
[1730461842365,12.12178731,167.91,167.86,9.14148731]
[1730461843063,9.14148731,167.9,167.88,2.9807]
[1730461843660,9.14148731,167.9,167.86,9.14148731]
[1730461843868,12.12198731,167.9,167.87,2.9809]
[1730461845269,9.14148731,167.96,167.89,9.14148731]
[1730461845570,9.14148731,167.98,167.92,9.14148731]
[1730461847264,2.9794,167.96,167.93,2.9798]
[1730461848666,9.14148731,167.94,167.89,9.14148731]
[1730461848879,9.14148731,167.94,167.88,5.3407]
[1730461848880,9.14148731,167.94,167.9,9.14148731]
[1730461849466,4.1228,168.0,167.95,2.9795]
[1730461849467,9.14148731,167.98,167.95,2.9795]
[1730461850458,9.14148731,167.98,167.93,9.14148731]
[1730461850659,12.12068731,167.98,167.94,2.9797]
[1730461851466,2.9793,167.97,167.94,2.9797]
[1730461852072,9.14148731,167.98,167.93,9.14148731]
[1730461852272,9.14148731,167.99,167.94,9.14148731]
[1730461853671,14.11998731,168.02,167.97,9.14148731]
[1730461853976,11.14148731,168.02,167.97,9.14148731]
[1730461854373,2.9785,168.01,167.98,2.9789]
[1730461855773,11.14148731,168.02,167.97,9.14148731]
[1730461855977,14.11978731,168.02,167.99,2.9788]
[1730461857582,11.14148731,168.02,168.0,2.9786]
[1730461857789,2.0,168.02,168.0,2.9786]
[1730461860186,11.14148731,168.02,168.0,2.9786]
[1730461861586,2.0,168.02,168.0,2.9786]
[1730461861784,2.0,168.02,168.01,12.11998731]
[1730461864990,2.0,168.05,168.04,2.978]
[1730461865191,2.0,168.05,168.04,12.11948731]
[1730461865490,2.0,168.05,168.04,14.85948731]
[1730461867378,2.0,168.05,168.04,2.978]
[1730461868298,2.0,168.05,168.04,12.11948731]
[1730461870698,2.0,168.05,168.03,2.74]
[1730461870699,14.11938731,168.05,168.0,9.14148731]
[1730461871391,14.11938731,168.05,167.97,5.3683]
[1730461871392,2.0,168.05,168.01,9.14148731]
[1730461871586,2.0,168.05,167.97,5.3683]
[1730461871587,2.0,168.05,168.03,2.978]
[1730461873985,2.0,168.05,168.02,9.14148731]
[1730461874287,2.0,168.05,168.04,12.11948731]
[1730461876491,2.0,168.05,168.04,2.978]
[1730461878400,2.0,168.05,168.03,9.14148731]
[1730461878698,2.0,168.05,168.01,2.74]
[1730461878699,2.0,168.05,168.01,11.88148731]
[1730461879508,4.9779,168.05,168.02,2.9782]
[1730461880200,2.0,168.05,168.01,9.14148731]
[1730461880393,2.978,168.04,168.01,2.9785]
[1730461884003,9.14148731,168.03,168.01,2.9785]
[1730461884601,9.14148731,168.03,168.0,9.14148731]
[1730461884912,2.9786,168.01,167.98,2.979]
[1730461888412,2.9788,168.0,167.97,5.7192]
[1730461889401,2.9787,168.01,167.97,2.74]
[1730461889604,2.9787,168.01,167.98,2.979]
[1730461892114,2.9787,168.01,167.97,2.9791]
[1730461893612,9.14148731,168.01,167.96,9.14148731]
[1730461893820,2.9789,167.99,167.96,2.9793]
[1730461894006,9.14148731,168.01,167.96,2.9793]
[1730461894718,2.9787,168.0,167.96,2.9793]
[1730461899110,2.9787,168.0,167.96,12.12078731]
[1730461900109,2.9788,167.99,167.96,12.12078731]
[1730461901025,9.14148731,168.01,167.96,12.12078731]
[1730461901230,2.9787,168.0,167.97,2.9792]
[1730461901419,2.9787,168.0,167.96,9.14148731]
[1730461901720,12.11998731,168.01,167.96,9.14148731]
[1730461901916,12.11998731,168.01,167.98,2.979]
[1730461902922,12.11998731,168.01,167.97,2.9791]
[1730461905210,9.14148731,168.01,167.95,9.14148731]
[1730461905417,2.9788,168.0,167.96,2.9793]
[1730461905723,9.14148731,167.99,167.96,2.9793]
[1730461906424,9.14148731,167.99,167.94,11.88148731]
[1730461906623,12.12038731,167.99,167.94,11.88148731]
[1730461907327,12.12038731,167.99,167.96,2.9793]
[1730461916326,9.14148731,167.99,167.96,2.9793]
[1730461918125,12.12038731,167.99,167.96,2.9793]
[1730461921426,9.14148731,168.0,167.94,9.14148731]
[1730461921630,9.14148731,168.0,167.95,9.14148731]
[1730461922529,2.9787,168.0,167.97,2.9791]
[1730461923336,9.14148731,168.01,167.97,9.14148731]
[1730461923538,2.9784,168.02,167.99,2.9788]
[1730461926439,9.14148731,168.03,167.98,9.14148731]
[1730461926644,9.14148731,168.03,167.99,2.9788]
[1730461926645,2.9784,168.02,167.99,2.9788]
[1730461927138,12.11948731,168.04,168.01,2.9784]
[1730461927533,9.14148731,168.04,167.99,9.14148731]
[1730461927936,12.11948731,168.04,168.0,2.9785]
[1730461930737,12.11948731,168.04,168.01,2.9785]
[1730461931840,2.9786,168.01,167.98,2.979]
[1730461932045,9.14148731,168.0,167.98,2.979]
[1730461933541,9.14148731,168.0,167.96,2.74]
[1730461935355,2.9789,167.99,167.96,5.7192]
[1730461936450,12.12038731,167.99,167.95,12.12088731]
[1730461937353,12.12038731,167.99,167.96,2.9793]
[1730461939952,9.14148731,167.99,167.95,9.14148731]
[1730461940158,9.14148731,167.99,167.97,2.9792]
[1730461940853,12.12018731,168.0,167.97,2.9792]
[1730461941548,9.14148731,168.0,167.95,9.14148731]
[1730461941749,9.14148731,168.0,167.98,2.9789]
[1730461941949,9.14148731,168.0,167.95,9.14148731]
[1730461942455,12.12018731,168.0,167.96,2.9792]
[1730461943957,12.12018731,168.0,167.97,2.9792]
[1730461946358,12.11978731,168.03,167.99,2.9787]
[1730461946557,9.14148731,168.03,167.98,9.14148731]
[1730461947564,9.14148731,168.03,168.0,2.9788]
[1730461952972,12.11998731,168.03,168.0,2.9788]
[1730461955464,9.14148731,168.03,167.98,9.14148731]
[1730461955781,2.9786,168.02,167.99,2.9791]
[1730461956568,9.14148731,168.03,167.98,9.14148731]
[1730461957371,9.14148731,168.03,167.98,12.12068731]
[1730461957372,2.9787,168.02,167.98,12.12068731]
[1730461957575,2.9787,168.02,167.98,9.14148731]
[1730461958076,2.9787,168.02,167.99,2.9791]
[1730461960073,2.9787,168.02,167.98,12.12068731]
[1730461965963,2.9789,168.01,167.98,12.12068731]
[1730461966168,9.14148731,168.01,167.96,12.12108731]
[1730461967276,10.79766566,168.05,167.95,14.86128731]
[1730461967277,9.14148731,167.99,167.95,14.86128731]
[1730461967776,9.14148731,167.99,167.95,12.12128731]
[1730461967984,9.14148731,167.99,167.95,9.14148731]
[1730461968283,12.12068731,167.99,167.96,2.9796]
[1730461968472,9.14148731,167.99,167.96,2.9796]
[1730461969575,2.979,168.0,167.96,12.12108731]
[1730461970090,2.9792,167.99,167.96,12.12108731]
[1730461972573,2.9791,168.0,167.96,12.12108731]
[1730461974677,9.14148731,167.99,167.94,9.14148731]
[1730461974983,12.12098731,167.98,167.94,2.9799]
[1730461975675,9.14148731,167.98,167.93,9.14148731]
[1730461975877,2.9792,167.99,167.96,2.9796]
[1730461976389,12.12048731,168.0,167.97,2.9794]
[1730461976682,12.12048731,168.0,167.95,9.14148731]
[1730461976683,9.14148731,168.0,167.95,9.14148731]
[1730461977082,9.14148731,168.0,167.97,2.9794]
[1730461978271,14.78668731,168.01,167.97,2.9794]
[1730461978476,13.45648731,168.01,167.97,2.9794]
[1730461979482,12.12038731,168.01,167.98,2.9793]
[1730461980386,12.12008731,168.03,168.0,2.9789]
[1730461980588,12.12008731,168.03,167.98,9.14148731]
[1730461980974,9.14148731,168.02,167.99,2.9791]
[1730461981588,12.12008731,168.02,167.99,2.9791]
[1730461983591,9.14148731,168.01,167.96,11.88148731]
[1730461983787,12.12038731,168.01,167.97,2.9793]
[1730461984379,9.14148731,168.01,167.96,9.14148731]
[1730461984585,9.14148731,167.99,167.96,2.9796]
[1730461986584,12.12068731,167.99,167.96,2.9796]
[1730461987286,2.9794,167.98,167.95,2.9799]
[1730461988790,2.9798,167.96,167.93,2.9801]
[1730461988992,9.14148731,167.97,167.91,9.14148731]
[1730461989991,2.98,167.95,167.93,2.9802]
[1730461991203,12.12148731,167.94,167.91,2.9804]
[1730461991615,9.14148731,167.92,167.87,9.14148731]
[1730461991897,9.14148731,167.91,167.87,9.14148731]
[1730461992090,9.14148731,167.91,167.86,11.88148731]
[1730461992502,12.12218731,167.91,167.88,2.981]
[1730461992704,12.12218731,167.91,167.86,11.88148731]
[1730461992705,9.14148731,167.91,167.86,11.88148731]
[1730461993195,9.14148731,167.91,167.86,9.14148731]
[1730461993395,9.14148731,167.9,167.85,9.14148731]
[1730461994000,2.981,167.89,167.86,2.9813]
[1730461994299,9.14148731,167.9,167.85,9.14148731]
[1730461994496,12.12228731,167.9,167.87,2.9812]
[1730461994692,2.9808,167.9,167.87,2.9812]
[1730461994884,2.74,167.96,167.84,9.14148731]
[1730461995085,9.14148731,167.9,167.85,9.14148731]
[1730461995301,2.74,167.96,167.87,9.14148731]